bitfinex-derivatives/quotes_SOLF0:USTF0_20240824
["timestamp","ask_amount","ask_price","bid_price","bid_amount"]
[1724477273169,0.04787799,155.15,155.13,3.2207]
[1724477274067,3.2208,155.13,155.12,0.04164658]
[1724477274783,0.04787799,155.15,154.96,19.77]
[1724477274784,3.2215,155.1,155.06,19.77]
[1724477274960,19.77,155.13,155.05,3.2224]
[1724477275158,19.77,155.13,155.03,19.77]
[1724477275359,3.2217,155.1,155.03,19.77]
[1724477275867,19.77,155.13,155.03,19.77]
[1724477275868,0.04818767,155.08,155.05,0.04621967]
[1724477277164,0.04818767,155.08,155.05,3.26871967]
[1724477277668,0.04818767,155.08,155.06,3.2222]
[1724477277870,0.04818767,155.08,155.05,19.81621967]
[1724477278166,19.77,155.18,155.07,19.77]
[1724477278375,19.77,155.18,155.09,19.77]
[1724477278766,3.2207,155.14,155.1,3.2214]
[1724477279169,3.26423493,155.14,155.1,3.27031642]
[1724477279370,0.04353493,155.14,155.1,0.04891642]
[1724477280272,3.221,155.13,155.1,0.04891642]
[1724477281166,0.04353493,155.14,155.1,0.04891642]
[1724477281665,3.2213,155.11,155.1,0.04891642]
[1724477283273,19.77,155.12,155.03,19.77]
[1724477283475,2.601,155.11,155.03,19.77]
[1724477283777,3.2222,155.07,155.01,19.77]
[1724477283975,6.442,155.18,155.05,19.77]
[1724477284276,0.0495935,155.13,155.1,0.04478239]
[1724477284579,0.04823809,155.13,155.1,0.04185689]
[1724477286282,3.26913809,155.13,155.1,0.04185689]
[1724477287201,0.04823809,155.13,155.1,3.26325689]
[1724477287673,0.04823809,155.13,155.1,0.04185689]
[1724477288070,3.26913809,155.13,155.1,0.04185689]
[1724477291578,3.2211,155.12,155.1,0.04185689]
[1724477292173,3.2213,155.11,155.1,0.04185689]
[1724477295276,3.2211,155.12,155.1,0.04185689]
[1724477295478,0.04823809,155.13,155.1,0.04185689]
[1724477295777,3.2211,155.12,155.1,0.04185689]
[1724477295984,0.04823809,155.13,155.1,0.04185689]
[1724477296480,0.04823809,155.13,155.1,19.81185689]
[1724477298095,0.04823809,155.13,155.1,0.04185689]
[1724477298682,3.2213,155.11,155.1,0.04185689]
[1724477299190,3.222,155.08,155.04,19.77]
[1724477299381,19.77,155.11,155.02,19.77]
[1724477299582,2.567,155.1,155.02,19.77]
[1724477299782,19.77,155.09,155.02,19.77]
[1724477299978,2.567,155.1,154.98,19.77]
[1724477299979,19.77,155.07,154.98,19.77]
[1724477300195,0.04431102,155.04,155.01,0.04642393]
[1724477300385,3.2231,155.02,155.01,0.04642393]
[1724477302181,4.4621,155.03,155.01,0.04642393]
[1724477302983,2.5612,155.03,154.94,19.77]
[1724477303187,22.3312,155.03,154.94,19.77]
[1724477303685,3.2237,155.0,154.94,19.77]
[1724477304082,3.26848794,154.99,154.95,0.0448096]
[1724477304282,0.04458794,154.99,154.96,19.77]
[1724477304782,0.04458794,154.99,154.97,3.2242]
[1724477305009,0.04458794,154.99,154.98,19.77]
[1724477305482,0.04458794,154.99,154.98,22.994]
[1724477305876,0.04458794,154.99,154.98,19.77]
[1724477307085,0.04458794,154.99,154.96,22.9943]
[1724477307783,0.04458794,154.99,154.96,19.77]
[1724477307987,0.04458794,154.99,154.95,0.0448096]
[1724477308484,3.224,154.98,154.95,0.0448096]
[1724477310978,3.26838794,154.99,154.95,3.2694096]
[1724477315792,0.04458794,154.99,154.96,19.77]
[1724477316392,0.04458794,154.99,154.96,22.9942]
[1724477317086,0.04458794,154.99,154.98,3.224]
[1724477317590,0.04458794,154.99,154.97,3.2241]
[1724477318985,0.04458794,154.99,154.98,3.224]
[1724477319185,3.26838794,154.99,154.96,19.77]
[1724477321590,0.04458794,154.99,154.96,22.9942]
[1724477322187,0.04458794,154.99,154.97,3.2241]
[1724477322393,0.04458794,154.99,154.96,19.77]
[1724477322592,0.04458794,154.99,154.97,3.224]
[1724477327794,0.04458794,154.99,154.96,19.77]
[1724477330395,0.04458794,154.99,154.98,3.224]
[1724477331298,0.04458794,154.99,154.98,22.994]
[1724477331891,3.2227,155.05,154.98,19.77]
[1724477332102,3.2227,155.05,155.01,3.2232]
[1724477333097,3.26945801,155.05,155.01,3.27002618]
[1724477334601,3.26945801,155.05,155.02,3.2231]
[1724477337102,3.2227,155.04,155.01,0.04682618]
[1724477338305,0.04675801,155.05,155.01,0.04682618]
[1724477338499,2.6279,155.03,154.98,3.2239]
[1724477339119,3.2231,155.02,154.98,3.2239]
[1724477339406,3.2231,155.02,154.97,19.77]
[1724477339614,3.2231,155.02,154.98,0.04284386]
[1724477339615,3.26895853,155.02,154.98,0.04284386]
[1724477339799,3.2234,155.01,154.98,0.04284386]
[1724477340203,1.41515853,155.02,154.98,0.04284386]
[1724477341806,3.2234,155.01,154.98,0.04284386]
[1724477342506,3.2236,155.0,154.98,0.04284386]
[1724477346908,3.2238,154.99,154.98,0.04284386]
[1724477347109,19.77,155.0,154.92,19.77]
[1724477347612,3.224,154.98,154.95,3.2246]
[1724477348005,3.224,154.98,154.92,19.77]
[1724477348213,3.224,154.98,154.95,0.04919029]
[1724477348214,3.2242,154.97,154.95,0.04919029]
[1724477348529,0.04731414,154.98,154.95,0.04919029]
[1724477348704,0.04731414,154.98,154.95,3.27369029]
[1724477349707,0.04731414,154.98,154.95,0.04919029]
[1724477351904,3.27141414,154.98,154.95,0.04919029]
[1724477352105,0.04731414,154.98,154.95,0.04919029]
[1724477353912,3.27131414,154.98,154.95,0.04919029]
[1724477354313,0.04731414,154.98,154.95,0.04919029]
[1724477354715,0.04731414,154.98,154.96,19.77]
[1724477354917,0.04731414,154.98,154.95,0.04919029]
[1724477354918,0.04731414,154.98,154.97,22.9942]
[1724477358621,5.8509,155.03,154.99,3.2236]
[1724477358919,2.6279,155.03,154.97,19.77]
[1724477359221,2.6279,155.03,154.99,19.77]
[1724477359716,2.67015085,155.03,154.99,19.81815383]
[1724477359921,2.67015085,155.03,155.01,3.2232]
[1724477360518,1.37555085,155.03,155.01,3.2232]
[1724477360717,0.04225085,155.03,154.99,19.81815383]
[1724477361316,0.04225085,155.03,155.01,3.2233]
[1724477362317,0.04225085,155.03,155.02,3.2231]
[1724477372029,3.2221,155.07,155.03,3.2228]
[1724477372235,3.2221,155.07,155.04,19.77]
[1724477373337,3.2657058,155.07,155.04,19.81506292]
[1724477375830,3.2225,155.05,155.04,0.04506292]
[1724477376036,0.0436058,155.07,155.04,0.04506292]
[1724477376331,0.0436058,155.07,154.99,19.77]
[1724477376535,3.2229,155.03,154.99,22.9936]
[1724477376729,3.20750351,155.06,154.97,19.77]
[1724477376930,1.2601,155.05,154.97,19.77]
[1724477377238,3.2231,155.02,154.99,0.04282546]
[1724477377634,3.2232,155.02,154.99,0.04282546]
[1724477377832,0.04505342,155.03,154.99,0.04282546]
[1724477378641,3.2232,155.02,154.99,0.04282546]
[1724477379337,1.3687,155.02,154.99,0.04282546]
[1724477380033,3.2235,155.01,154.99,0.04282546]
[1724477382046,1.3687,155.02,154.99,0.04282546]
[1724477383145,4.592,155.02,154.99,0.04282546]
[1724477383846,3.2234,155.01,154.99,0.04282546]
[1724477385445,3.2235,155.0,154.99,0.04282546]
[1724477386639,1.3687,155.02,154.94,19.77]
[1724477386640,3.2241,154.98,154.94,19.77]
[1724477387044,19.77,155.01,154.94,19.77]
[1724477387245,3.2242,154.97,154.91,19.77]
[1724477387644,0.04605354,154.96,154.92,0.04913275]
[1724477388158,3.27065354,154.96,154.92,0.04913275]
[1724477388672,3.27065354,154.96,154.92,3.27433275]
[1724477388849,3.2246,154.95,154.92,3.27433275]
[1724477389047,3.2246,154.95,154.92,0.04913275]
[1724477389641,3.2246,154.95,154.92,3.27433275]
[1724477390347,3.2246,154.95,154.92,0.04913275]
[1724477392358,3.2246,154.95,154.92,3.27433275]
[1724477393355,3.2246,154.95,154.92,0.04913275]
[1724477394259,3.2248,154.94,154.92,0.04913275]
[1724477396058,1.32555354,154.96,154.92,0.04913275]
[1724477396653,3.2249,154.94,154.92,0.04913275]
[1724477397254,3.225,154.93,154.92,0.04913275]
[1724477398355,3.2253,154.92,154.83,0.3635]
[1724477398661,3.2253,154.92,154.87,19.77]
[1724477398868,1.2795,154.96,154.89,19.77]
[1724477399059,3.2248,154.94,154.89,19.77]
[1724477399257,1.2795,154.96,154.9,3.2255]
[1724477399557,0.04708349,154.95,154.91,0.02465714]
[1724477400459,3.2248,154.94,154.91,0.02465714]
[1724477401757,3.225,154.93,154.91,0.02465714]
[1724477404060,3.2252,154.92,154.91,0.02465714]
[1724477404286,19.77,154.92,154.72,6.74173629]
[1724477404463,19.77,154.92,154.83,19.77]
[1724477404661,1.2673,154.91,154.87,19.77]
[1724477405367,1.31106057,154.91,154.87,19.77]
[1724477405765,4.53666057,154.91,154.88,3.226]
[1724477405961,0.04376057,154.91,154.88,19.77]
[1724477406368,0.04376057,154.91,154.9,3.2256]
[1724477409167,0.04376057,154.91,154.9,22.9956]
[1724477412879,1.2795,154.96,154.9,19.77]
[1724477413074,1.2673,154.97,154.93,19.77]
[1724477413581,1.2673,154.97,154.94,3.2247]
[1724477414080,1.30839327,154.97,154.94,0.04376057]
[1724477416183,0.04109327,154.97,154.94,0.04376057]
[1724477416379,0.04109327,154.97,154.95,19.77]
[1724477416577,0.04109327,154.97,154.94,0.04376057]
[1724477416772,0.04109327,154.97,154.94,19.81376057]
[1724477417272,0.04109327,154.97,154.96,3.2244]
[1724477420879,0.04109327,154.97,154.95,19.77]
[1724477421482,0.04109327,154.97,154.94,0.04376057]
[1724477422577,0.04109327,154.97,154.94,3.26856057]
[1724477422780,0.04109327,154.97,154.94,0.04376057]
[1724477422986,3.2245,154.96,154.94,0.04376057]
[1724477424597,0.04109327,154.97,154.94,0.04376057]
[1724477425279,3.2245,154.96,154.94,0.04376057]
[1724477429382,0.04109327,154.97,154.94,0.04376057]
[1724477430083,3.2246,154.96,154.94,0.04376057]
[1724477432989,19.81109327,154.97,154.88,19.77]
[1724477433189,19.77,154.97,154.88,19.77]
[1724477433582,19.77,154.97,154.9,3.2256]
[1724477433984,3.2249,154.94,154.9,3.2256]
[1724477434699,3.2251,154.93,154.89,3.2258]
[1724477434988,3.2251,154.93,154.85,19.77]
[1724477434989,0.04650087,154.93,154.85,19.77]
[1724477435181,3.27380973,154.91,154.87,3.2261]
[1724477435381,0.04820973,154.91,154.87,3.2261]
[1724477435786,3.2256,154.9,154.87,3.2261]
[1724477441688,0.04820973,154.91,154.86,3.2264]
[1724477441689,3.2258,154.89,154.86,3.2264]
[1724477445093,3.2257,154.9,154.86,3.2264]
[1724477446692,3.2258,154.89,154.86,3.2264]
[1724477451806,0.04820973,154.91,154.86,3.2264]
[1724477452097,0.04820973,154.91,154.83,19.77]
[1724477452502,3.27380973,154.91,154.87,3.2262]
[1724477454999,3.2257,154.9,154.86,3.2264]
[1724477455913,0.04820973,154.91,154.59,23.44022639]
[1724477455914,19.77,154.89,154.71,197.6585371]
[1724477456105,0.04703017,154.84,154.79,19.77]
[1724477456508,0.04703017,154.84,154.77,19.77]
[1724477456713,0.04959329,154.82,154.75,19.77]
[1724477457212,0.04959329,154.82,154.77,3.2283]
[1724477457911,3.2276,154.81,154.77,3.2283]
[1724477458904,1.33539329,154.82,154.78,3.2281]
[1724477459311,1.33539329,154.82,154.78,3.228]
[1724477460116,0.04959329,154.82,154.79,19.77]
[1724477460318,0.04386518,154.82,154.79,19.77]
[1724477461411,0.04386518,154.82,154.81,3.2275]
[1724477461616,0.04386518,154.82,154.81,22.9975]
[1724477461817,1.3126,154.88,154.81,19.77]
[1724477462915,0.04599272,154.86,154.83,3.2700696]
[1724477463809,0.04599272,154.86,154.84,3.2269]
[1724477464030,0.04599272,154.86,154.83,19.8131696]
[1724477464318,0.04599272,154.86,154.83,0.0431696]
[1724477465007,0.04599272,154.86,154.84,3.2269]
[1724477465206,0.04599272,154.86,154.83,0.0431696]
[1724477465415,0.04599272,154.86,154.84,3.2267]
[1724477465911,0.04599272,154.86,154.83,3.2700696]
[1724477466116,0.04599272,154.86,154.83,0.0431696]
[1724477466509,3.27259272,154.86,154.83,0.0431696]
[1724477466713,19.81599272,154.86,154.83,0.0431696]
[1724477466915,19.77,154.86,154.75,19.77]
[1724477467314,3.227,154.84,154.79,3.2277]
[1724477467516,19.77,154.84,154.75,19.77]
[1724477467741,3.2277,154.81,154.73,19.77]
[1724477467919,0.04179144,154.79,154.73,19.77]
[1724477470822,0.04179144,154.79,154.77,3.2283]
[1724477471217,0.04179144,154.79,154.67,0.4762]
[1724477471521,0.04179144,154.79,154.75,19.77]
[1724477472120,0.04179144,154.79,154.77,3.2282]
[1724477473119,0.04179144,154.79,154.78,3.2281]
[1724477473326,2.6386,154.87,154.77,19.77]
[1724477473625,2.6386,154.87,154.8,19.77]
[1724477474222,0.0444243,154.85,154.83,3.227]
[1724477475720,0.0444243,154.85,154.82,3.27075879]
[1724477478424,0.0444243,154.85,154.83,3.227]
[1724477481128,0.0444243,154.85,154.84,3.2269]
[1724477482323,0.0444243,154.85,154.82,19.81355879]
[1724477483627,0.0444243,154.85,154.83,3.2269]
[1724477486125,0.0444243,154.85,154.82,0.04355879]
[1724477486729,3.2712243,154.85,154.82,0.04355879]
[1724477487932,3.2712243,154.85,154.76,25.8]
[1724477487933,19.8144243,154.85,154.76,25.8]
[1724477488138,1.2972,154.84,154.76,25.8]
[1724477488529,1.2972,154.84,154.74,19.77]
[1724477488932,3.27266959,154.81,154.77,3.2283]
[1724477489134,0.04516959,154.81,154.76,19.77]
[1724477489339,0.04376973,154.8,154.78,19.77]
[1724477489535,0.04376973,154.8,154.79,3.2279]
[1724477492937,0.04376973,154.8,154.76,19.77]
[1724477493332,0.04376973,154.8,154.78,3.2281]
[1724477493537,0.04376973,154.8,154.76,19.77]
[1724477494341,0.04376973,154.8,154.79,22.9979]
[1724477501851,1.2875,154.87,154.79,19.77]
[1724477502152,1.2875,154.87,154.83,3.2269]
[1724477502348,1.2875,154.87,154.82,19.77]
[1724477502747,0.04859898,154.86,154.83,0.04376973]
[1724477502955,0.04859898,154.86,154.83,3.27066973]
[1724477503350,0.04859898,154.86,154.84,3.2269]
[1724477504049,3.27509898,154.86,154.83,0.04376973]
[1724477505151,0.04859898,154.86,154.84,3.2268]
[1724477507451,0.04859898,154.86,154.85,3.2267]
[1724477509042,0.04859898,154.86,154.84,3.2268]
[1724477511650,0.04859898,154.86,154.83,0.04376973]
[1724477512059,3.27509898,154.86,154.83,0.04376973]
[1724477512450,0.04859898,154.86,154.83,0.04376973]
[1724477513053,0.04859898,154.86,154.84,3.2267]
[1724477518260,0.04859898,154.86,154.83,3.27076973]
[1724477518868,3.27509898,154.86,154.83,3.27076973]
[1724477519360,0.04859898,154.86,154.83,3.27076973]
[1724477520762,3.27509898,154.86,154.83,3.27076973]
[1724477521459,3.2267,154.85,154.83,0.04376973]
[1724477521760,0.04859898,154.86,154.83,0.04376973]
[1724477521957,3.27509898,154.86,154.83,0.04376973]
[1724477522755,0.04859898,154.86,154.83,0.04376973]
[1724477523463,0.04859898,154.86,154.84,3.2267]
[1724477525163,0.04859898,154.86,154.83,3.27076973]
[1724477528065,0.04859898,154.86,154.84,3.2269]
[1724477529069,0.04859898,154.86,154.83,3.27076973]
[1724477531860,0.04859898,154.86,154.74,29.00065323]
[1724477532060,19.77,154.86,154.75,19.77]
[1724477532964,3.26978647,154.82,154.77,3.2283]
[1724477533166,0.04248647,154.82,154.77,3.2283]
[1724477533474,3.2275,154.81,154.76,3.2283]
[1724477533667,3.2275,154.81,154.75,19.77]
[1724477533966,0.04248647,154.82,154.75,19.77]
[1724477534167,3.26988647,154.82,154.77,3.2281]
[1724477534667,0.04248647,154.82,154.78,3.2281]
[1724477534867,0.04248647,154.82,154.77,19.77]
[1724477535076,0.04248647,154.82,154.79,19.77]
[1724477535676,0.04248647,154.82,154.8,3.2277]
[1724477536969,0.04248647,154.82,154.79,3.2278]
[1724477539572,0.04248647,154.82,154.75,19.77]
[1724477540474,3.26978647,154.82,154.77,3.2282]
[1724477540674,0.04248647,154.82,154.77,3.2282]
[1724477541578,0.04248647,154.82,154.78,3.228]
[1724477541777,0.04248647,154.82,154.77,19.77]
[1724477542681,0.04248647,154.82,154.75,3.28227097]
[1724477542682,0.04248647,154.82,154.79,19.77]
[1724477543179,0.04248647,154.82,154.8,3.2277]
[1724477543387,0.04248647,154.82,154.79,19.77]
[1724477543888,0.04248647,154.82,154.8,3.2277]
[1724477544482,0.04248647,154.82,154.81,3.2275]
[1724477546487,0.04248647,154.82,154.8,3.2277]
[1724477549189,0.04248647,154.82,154.81,3.2275]
[1724477549687,0.04248647,154.82,154.8,3.2276]
[1724477551490,0.04248647,154.82,154.79,3.2278]
[1724477551887,0.04248647,154.82,154.77,19.77]
[1724477552085,0.04248647,154.82,154.75,20.1386]
[1724477552279,0.04248647,154.82,154.75,19.77]
[1724477552485,3.26998647,154.82,154.78,3.2281]
[1724477555693,3.2275,154.81,154.77,3.2283]
[1724477556395,3.2277,154.8,154.76,3.2285]
[1724477556595,19.81248647,154.82,154.74,25.8]
[1724477556795,0.04916621,154.8,154.74,25.8]
[1724477557599,3.228,154.79,154.75,3.2286]
[1724477558192,3.2281,154.78,154.74,29.0289]
[1724477558694,3.2284,154.77,154.74,25.8]
[1724477559193,3.2286,154.76,154.74,25.8]
[1724477559394,3.2286,154.76,154.69,19.77]
[1724477559793,3.2286,154.76,154.71,3.2294]
[1724477559989,3.2286,154.76,154.69,19.77]
[1724477560196,19.77,154.76,154.68,3.2302]
[1724477560396,19.81185777,154.74,154.64,45.9596]
[1724477560589,0.04617074,154.71,154.64,45.9596]
[1724477561396,0.04617074,154.71,154.66,19.77]
[1724477561595,0.04617074,154.71,154.68,19.77]
[1724477561792,0.04617074,154.71,154.7,3.2298]
[1724477563598,19.77,154.79,154.75,3.2286]
[1724477563797,2.566,154.8,154.75,3.2286]
[1724477564100,3.228,154.79,154.72,19.77]
[1724477564600,3.228,154.79,154.74,3.2289]
[1724477564897,0.04099968,154.77,154.74,3.27090431]
[1724477572800,0.04099968,154.77,154.75,3.2287]
[1724477573306,0.04099968,154.77,154.76,3.2285]
[1724477575804,0.04099968,154.77,154.76,22.9985]
[1724477576006,5.8041,154.85,154.76,19.77]
[1724477576302,2.5774,154.85,154.78,19.77]
[1724477576604,2.5774,154.85,154.81,3.2274]
[1724477576813,2.5774,154.85,154.78,19.77]
[1724477576996,0.04824873,154.83,154.8,0.04310755]
[1724477577801,0.04824873,154.83,154.8,3.27060755]
[1724477578006,0.04824873,154.83,154.8,0.04310755]
[1724477579205,0.04824873,154.83,154.81,3.2273]
[1724477580106,0.04824873,154.83,154.8,0.04310755]
[1724477580907,19.81824873,154.83,154.8,0.04310755]
[1724477581404,3.2273,154.82,154.8,0.04310755]
[1724477581932,19.81824873,154.83,154.74,19.77]
[1724477582111,19.77,154.81,154.72,19.77]
[1724477582307,3.2281,154.79,154.74,3.2288]
[1724477583010,1.3641,154.82,154.75,0.04241232]
[1724477583011,0.0417323,154.78,154.75,0.04241232]
[1724477583808,0.0417323,154.78,154.77,3.2283]
[1724477584309,19.77,154.87,154.76,19.77]
[1724477584512,19.77,154.87,154.78,19.77]
[1724477585011,3.2267,154.85,154.81,3.2275]
[1724477585207,3.27067074,154.85,154.81,3.27267785]
[1724477585401,3.27067074,154.85,154.81,0.04517785]
[1724477587008,3.27067074,154.85,154.81,3.27257785]
[1724477588716,3.227,154.84,154.81,0.04517785]
[1724477591012,19.81397074,154.85,154.81,0.04517785]
[1724477591208,19.77,154.83,154.81,0.04517785]
[1724477591609,19.77,154.83,154.74,19.77]
[1724477591814,19.77,154.81,154.72,19.77]
[1724477592211,19.77,154.81,154.71,27.1648]
[1724477592467,3.2281,154.79,154.71,27.1648]
[1724477592714,1.3628,154.82,154.71,27.1648]
[1724477592715,0.04408202,154.77,154.73,0.04061731]
[1724477593114,0.04408202,154.77,154.76,3.2285]
[1724477593319,1.3628,154.82,154.75,19.77]
[1724477593517,1.3146,154.88,154.78,19.77]
[1724477593719,2.5582,154.88,154.78,19.77]
[1724477593913,3.2266,154.86,154.81,3.2275]
[1724477594619,0.04160578,154.85,154.82,0.04937588]
[1724477596324,19.81160578,154.85,154.82,0.04937588]
[1724477596923,22.9971,154.83,154.82,0.04937588]
[1724477603323,3.2274,154.82,154.78,3.2281]
[1724477603828,4.5346,154.82,154.78,3.2281]
[1724477604226,4.5769747,154.82,154.78,3.26342346]
[1724477608333,1.3495747,154.82,154.78,0.03532346]
[1724477609137,4.5769747,154.82,154.78,3.26342346]
[1724477609736,19.77,154.81,154.78,0.03532346]
[1724477610131,21.0237,154.81,154.78,0.03532346]
[1724477610338,3.2279,154.8,154.78,0.03532346]
[1724477611636,3.2279,154.79,154.78,0.03532346]
[1724477612033,22.9979,154.79,154.78,0.03532346]
[1724477612941,19.77,154.79,154.71,25.82]
[1724477613146,19.77,154.77,154.71,25.82]
[1724477613331,19.77,154.79,154.71,45.59]
[1724477613535,3.2283,154.78,154.74,3.2288]
[1724477613736,19.77,154.79,154.71,45.59]
[1724477613941,0.04534489,154.77,154.71,45.59]
[1724477614733,0.04534489,154.77,154.74,3.2288]
[1724477618341,3.27364489,154.77,154.73,3.2291]
[1724477618640,19.77,154.75,154.71,25.82]
[1724477619043,19.77,154.73,154.62,22.95112126]
[1724477619248,0.04620749,154.69,154.62,19.77]
[1724477619444,0.04620749,154.69,154.66,3.2305]
[1724477619647,0.04620749,154.69,154.62,19.77]
[1724477620346,0.04620749,154.69,154.59,25.82]
[1724477620546,0.04859866,154.66,154.6,19.77]
[1724477620845,0.04859866,154.66,154.65,3.2308]
[1724477622144,0.04859866,154.66,154.6,19.77]
[1724477623448,0.04859866,154.66,154.63,3.2311]
[1724477623642,0.04859866,154.66,154.59,25.82]
[1724477624947,0.04859866,154.66,154.63,3.2311]
[1724477628349,0.04859866,154.66,154.64,3.2309]
[1724477628548,0.04859866,154.66,154.59,25.82]
[1724477629151,0.04859866,154.66,154.63,3.2312]
[1724477629651,3.2311,154.64,154.59,29.0519]
[1724477629853,19.77,154.64,154.59,25.82]
[1724477630252,3.2314,154.63,154.59,25.82]
[1724477630548,3.27939964,154.63,154.59,25.82]
[1724477631256,19.77,154.62,154.59,25.82]
[1724477631445,23.0016,154.62,154.59,25.82]
[1724477632651,23.0016,154.62,154.56,3.2327]
[1724477633254,23.0016,154.62,154.57,3.2325]
[1724477633481,0.04112345,154.61,154.57,3.2325]
[1724477633860,0.04112345,154.61,154.59,3.2319]
[1724477634160,0.04112345,154.61,154.56,19.77]
[1724477635162,0.04112345,154.61,154.58,3.2322]
[1724477637567,0.04112345,154.61,154.56,19.77]
[1724477638362,0.04112345,154.61,154.58,3.2321]
[1724477638762,0.04112345,154.61,154.56,19.77]
[1724477639761,0.04112345,154.61,154.59,3.232]
[1724477640162,0.04112345,154.61,154.56,19.77]
[1724477641262,0.04112345,154.61,154.58,3.2321]
[1724477643763,0.04112345,154.61,154.59,3.232]
[1724477645366,0.04112345,154.61,154.6,3.2319]
[1724477645956,0.04112345,154.61,154.59,3.232]
[1724477649763,0.04112345,154.61,154.58,3.2321]
[1724477650564,0.04112345,154.61,154.59,3.2321]
[1724477651365,3.232,154.6,154.56,3.2327]
[1724477651762,3.232,154.6,154.53,1.33]
[1724477651763,3.2326,154.57,154.53,1.33]
[1724477652067,0.04301598,154.57,154.51,0.4551]
[1724477652273,0.04301598,154.57,154.51,1.8006]
[1724477654066,0.04301598,154.57,154.54,3.233]
[1724477657774,0.04301598,154.57,154.55,3.2329]
[1724477658469,0.04301598,154.57,154.51,1.8006]
[1724477659262,0.04301598,154.57,154.54,3.233]
[1724477659870,0.04301598,154.57,154.55,3.2329]
[1724477660871,0.04301598,154.57,154.54,3.2331]
[1724477662271,19.81301598,154.57,154.48,87.02340642]
[1724477662477,19.77,154.55,154.48,25.84]
[1724477662776,0.04459873,154.53,154.48,25.84]
[1724477663770,0.04459873,154.53,154.49,3.2341]
[1724477664273,19.81459873,154.53,154.48,25.84]
[1724477664576,19.77,154.49,154.39,19.77]
[1724477664779,0.04559882,154.46,154.39,23.07997929]
[1724477665480,0.04559882,154.46,154.44,3.2351]
[1724477665782,0.04559882,154.46,154.41,19.77]
[1724477665981,0.04559882,154.46,154.43,19.77]
[1724477666274,0.04559882,154.46,154.45,3.235]
[1724477666680,21.0507,154.55,154.48,3.2343]
[1724477666977,21.0507,154.55,154.45,19.77]
[1724477667280,3.2337,154.52,154.47,3.2345]
[1724477667675,0.04183867,154.51,154.48,0.04559882]
[1724477668578,19.77,154.5,154.48,0.04559882]
[1724477669380,0.04183867,154.51,154.48,0.04559882]
[1724477669783,3.234,154.5,154.48,0.04559882]
[1724477670174,0.04183867,154.51,154.48,0.04559882]
[1724477672186,3.27563867,154.51,154.48,0.04559882]
[1724477677179,23.004,154.5,154.48,0.04559882]
[1724477677382,19.77,154.49,154.48,0.04559882]
[1724477677918,23.0042,154.49,154.48,0.04559882]
[1724477679583,3.2344,154.48,154.38,19.77]
[1724477679991,3.2344,154.48,154.43,3.2352]
[1724477680588,19.77,154.45,154.37,1.271]
[1724477680788,0.04359404,154.43,154.37,1.271]
[1724477681088,0.04359404,154.43,154.41,3.2357]
[1724477681889,0.04359404,154.43,154.38,3.26179281]
[1724477682389,0.04359404,154.43,154.37,1.271]
[1724477682992,0.04359404,154.43,154.4,3.236]
[1724477683191,0.04359404,154.43,154.37,1.271]
[1724477683592,0.04359404,154.43,154.39,3.2361]
[1724477684195,0.04359404,154.43,154.41,3.2358]
[1724477684394,0.04359404,154.43,154.36,25.84]
[1724477684594,0.04359404,154.43,154.36,45.61]
[1724477686092,0.04359404,154.43,154.4,3.236]
[1724477687181,3.27909404,154.43,154.38,3.2363]
[1724477687492,3.27909404,154.43,154.36,25.84]
[1724477687888,23.04909404,154.43,154.36,25.84]
[1724477688288,19.81359404,154.43,154.39,3.2361]
[1724477691694,0.04359404,154.43,154.36,45.61]
[1724477692601,0.04359404,154.43,154.4,3.236]
[1724477693085,0.04359404,154.43,154.4,3.2359]
[1724477693288,0.04359404,154.43,154.38,3.28236488]
[1724477693498,0.04359404,154.43,154.36,45.61]
[1724477693894,0.04359404,154.43,154.41,3.2357]
[1724477695195,0.04359404,154.43,154.42,3.2356]
[1724477704198,0.04359404,154.43,154.4,3.236]